[Event "*** Titled Tuesday Blitz"]
[Site "Chess.com"]
[Date "2020.12.01"]
[Round "1"]
[White "TzoumpasAnastasis"]
[Black "LawrenceTrent"]
[Result "0-1"]
[WhiteElo "2175"]
[BlackElo "2530"]
[TimeControl "180+1"]
[EndTime "10:05:47 PST"]
[Termination "LawrenceTrent won by checkmate"]

1. e4 {[%clk 0:02:59.5]} 1... d5 {[%clk 0:02:54]} 2. exd5 {[%clk 0:02:58.7]}
2... Qxd5 {[%clk 0:02:53.2]} 3. d4 {[%clk 0:02:58.4]} 3... e5 {[%clk 0:02:52.5]}
4. c3 {[%clk 0:02:56.4]} 4... Nc6 {[%clk 0:02:50]} 5. Nf3 {[%clk 0:02:54.3]}
5... Bg4 {[%clk 0:02:48.1]} 6. Be2 {[%clk 0:02:53.4]} 6... O-O-O {[%clk
0:02:44.2]} 7. O-O {[%clk 0:02:46.3]} 7... exd4 {[%clk 0:02:34.9]} 8. cxd4
{[%clk 0:02:38.4]} 8... Nf6 {[%clk 0:02:32.6]} 9. Nc3 {[%clk 0:02:37.1]} 9...
Qh5 {[%clk 0:02:31.8]} 10. Be3 {[%clk 0:02:33.1]} 10... Bd6 {[%clk 0:02:27.7]}
11. g3 {[%clk 0:02:18.3]} 11... Rhe8 {[%clk 0:02:20.4]} 12. d5 {[%clk
0:02:11.3]} 12... Nb4 {[%clk 0:02:10.4]} 13. h3 {[%clk 0:01:54.8]} 13... Qxh3
{[%clk 0:01:58.3]} 14. Ng5 {[%clk 0:01:54.1]} 14... Qh5 {[%clk 0:01:58.2]} 15.
Qa4 {[%clk 0:01:30.2]} 15... Rxe3 {[%clk 0:01:49.2]} 16. fxe3 {[%clk 0:01:06.9]}
16... Qxg5 {[%clk 0:01:49.4]} 17. Qxa7 {[%clk 0:01:05.5]} 17... b6 {[%clk
0:01:28.1]} 18. Bb5 {[%clk 0:01:01.1]} 18... Qxe3+ {[%clk 0:01:27.6]} 19. Rf2
{[%clk 0:00:58]} 19... Qxg3+ {[%clk 0:01:26.5]} 20. Kf1 {[%clk 0:00:56.3]} 20...
Qh3+ {[%clk 0:01:12.9]} 21. Ke1 {[%clk 0:00:55.5]} 21... Qe3+ {[%clk 0:01:08.7]}
22. Ne2 {[%clk 0:00:46.1]} 22... Nd3+ {[%clk 0:00:53.1]} 23. Bxd3 {[%clk
0:00:41.6]} 23... Qxd3 {[%clk 0:00:49.1]} 24. Qa8+ {[%clk 0:00:41.1]} 24... Kd7
{[%clk 0:00:49.2]} 25. Qc6+ {[%clk 0:00:41.1]} 25... Ke7 {[%clk 0:00:49.6]} 26.
Rd1 {[%clk 0:00:40.8]} 26... Bb4+ {[%clk 0:00:49.2]} 27. Nc3 {[%clk 0:00:39.3]}
27... Qxd1# {[%clk 0:00:49.4]} 0-1

[Event "*** Titled Tuesday Blitz"]
[Site "Chess.com"]
[Date "2020.12.01"]
[Round "1"]
[White "Aleksandar-Topalov"]
[Black "BilodeauA"]
[Result "0-1"]
[WhiteElo "2410"]
[BlackElo "2831"]
[TimeControl "180+1"]
[EndTime "10:05:50 PST"]
[Termination "BilodeauA won by resignation"]

1. b3 {[%clk 0:00:58.8]} 1... d5 {[%clk 0:02:38.4]} 2. Bb2 {[%clk 0:00:57.3]}
2... Nf6 {[%clk 0:02:37.3]} 3. Nf3 {[%clk 0:00:57.2]} 3... Bf5 {[%clk
0:02:37.4]} 4. g3 {[%clk 0:00:57]} 4... e6 {[%clk 0:02:37.9]} 5. Bg2 {[%clk
0:00:57.6]} 5... h6 {[%clk 0:02:38.6]} 6. O-O {[%clk 0:00:58]} 6... c5 {[%clk
0:02:39]} 7. Ne5 {[%clk 0:00:57.2]} 7... Nc6 {[%clk 0:02:36]} 8. Nxc6 {[%clk
0:00:57.2]} 8... bxc6 {[%clk 0:02:36.9]} 9. d3 {[%clk 0:00:57.8]} 9... Be7
{[%clk 0:02:36.7]} 10. Nd2 {[%clk 0:00:57.9]} 10... O-O {[%clk 0:02:37.3]} 11.
e4 {[%clk 0:00:58.3]} 11... Bh7 {[%clk 0:02:35.6]} 12. Qe2 {[%clk 0:00:58.6]}
12... a5 {[%clk 0:02:36]} 13. a4 {[%clk 0:00:58.5]} 13... Nd7 {[%clk 0:02:29.9]}
14. f4 {[%clk 0:00:57.2]} 14... Rb8 {[%clk 0:02:26.7]} 15. Rab1 {[%clk
0:00:56.9]} 15... Bf6 {[%clk 0:02:13.8]} 16. e5 {[%clk 0:00:56.6]} 16... Be7
{[%clk 0:02:13.9]} 17. Bc3 {[%clk 0:00:57.1]} 17... Re8 {[%clk 0:02:09.8]} 18.
Kh1 {[%clk 0:00:56.2]} 18... f6 {[%clk 0:01:57.5]} 19. Bh3 {[%clk 0:00:53.5]}
19... Nf8 {[%clk 0:01:54]} 20. Nf3 {[%clk 0:00:44.5]} 20... Bf5 {[%clk
0:01:34.8]} 21. Bxf5 {[%clk 0:00:43]} 21... exf5 {[%clk 0:01:34.6]} 22. exf6
{[%clk 0:00:38.7]} 22... Bxf6 {[%clk 0:01:35.2]} 23. Qd2 {[%clk 0:00:30.2]}
23... d4 {[%clk 0:01:33.1]} 24. Bb2 {[%clk 0:00:29]} 24... Qd5 {[%clk
0:01:25.6]} 25. Kg2 {[%clk 0:00:25.6]} 25... Re3 {[%clk 0:01:25.5]} 26. Rbe1
{[%clk 0:00:24.3]} 26... Rbe8 {[%clk 0:01:24.5]} 27. Bc1 {[%clk 0:00:23.7]}
27... g5 {[%clk 0:01:19.7]} 28. fxg5 {[%clk 0:00:19.2]} 28... hxg5 {[%clk
0:01:20.6]} 29. Qf2 {[%clk 0:00:18.3]} 29... Rxe1 {[%clk 0:01:20.7]} 30. Rxe1
{[%clk 0:00:17]} 30... Rxe1 {[%clk 0:01:20.9]} 31. Qxe1 {[%clk 0:00:17.2]} 31...
g4 {[%clk 0:01:21.5]} 0-1

[Event "*** Titled Tuesday Blitz"]
[Site "Chess.com"]
[Date "2020.12.01"]
[Round "1"]
[White "lucachess49"]
[Black "Koksik_13"]
[Result "1-0"]
[WhiteElo "2346"]
[BlackElo "2650"]
[TimeControl "180+1"]
[EndTime "10:05:50 PST"]
[Termination "lucachess49 won by resignation"]

1. d4 {[%clk 0:02:59.1]} 1... e6 {[%clk 0:02:59.8]} 2. c4 {[%clk 0:02:58.6]}
2... d5 {[%clk 0:03:00.7]} 3. Nc3 {[%clk 0:02:58.4]} 3... a6 {[%clk 0:02:59.1]}
4. Nf3 {[%clk 0:02:47.2]} 4... dxc4 {[%clk 0:02:58.8]} 5. e3 {[%clk 0:02:28.7]}
5... b5 {[%clk 0:02:58.4]} 6. a4 {[%clk 0:02:28.3]} 6... b4 {[%clk 0:02:51.7]}
7. Nb1 {[%clk 0:02:04]} 7... Bb7 {[%clk 0:02:48.2]} 8. Bxc4 {[%clk 0:02:03.7]}
8... Nf6 {[%clk 0:02:47.8]} 9. O-O {[%clk 0:02:03.7]} 9... c5 {[%clk 0:02:47.3]}
10. dxc5 {[%clk 0:01:54.6]} 10... Qxd1 {[%clk 0:02:44.3]} 11. Rxd1 {[%clk
0:01:55.5]} 11... Nbd7 {[%clk 0:02:42.9]} 12. Nbd2 {[%clk 0:01:16.7]} 12... Nxc5
{[%clk 0:02:42.3]} 13. b3 {[%clk 0:01:16.5]} 13... O-O-O {[%clk 0:02:41.8]} 14.
Bb2 {[%clk 0:01:15.1]} 14... Bd6 {[%clk 0:02:36.4]} 15. Rac1 {[%clk 0:01:13]}
15... Kb8 {[%clk 0:02:36.8]} 16. Be5 {[%clk 0:01:07]} 16... Ka7 {[%clk
0:02:30.1]} 17. Bd4 {[%clk 0:00:51.1]} 17... Kb8 {[%clk 0:02:29.6]} 18. Be5
{[%clk 0:00:46.4]} 18... Ka8 {[%clk 0:02:29.5]} 19. Bxd6 {[%clk 0:00:34.7]}
19... Rxd6 {[%clk 0:02:30.4]} 20. Ne5 {[%clk 0:00:35.1]} 20... Rhd8 {[%clk
0:02:30.4]} 21. Nxf7 {[%clk 0:00:34.8]} 21... Rxd2 {[%clk 0:02:08.5]} 22. Nxd8
{[%clk 0:00:34.4]} 22... Rb2 {[%clk 0:02:08.5]} 23. Nxb7 {[%clk 0:00:28]} 23...
Kxb7 {[%clk 0:02:09.4]} 24. Rd6 {[%clk 0:00:27.4]} 24... Nce4 {[%clk 0:02:04.7]}
25. Rxe6 {[%clk 0:00:25.2]} 25... Nc5 {[%clk 0:02:00.1]} 26. Re7+ {[%clk
0:00:24.4]} 26... Kb6 {[%clk 0:02:00.3]} 27. h3 {[%clk 0:00:16.2]} 27... Nxb3
{[%clk 0:02:00.4]} 28. Re6+ {[%clk 0:00:14.2]} 28... Ka7 {[%clk 0:01:58.1]} 29.
Bxb3 {[%clk 0:00:10.2]} 29... Rxb3 {[%clk 0:01:57.8]} 30. Rc7+ {[%clk
0:00:09.8]} 30... Kb8 {[%clk 0:01:58.4]} 31. Rxg7 {[%clk 0:00:10.2]} 31... Rc3
{[%clk 0:01:41.9]} 32. Rxf6 {[%clk 0:00:09.7]} 32... b3 {[%clk 0:01:39.9]} 33.
Rf8+ {[%clk 0:00:07.9]} 33... Rc8 {[%clk 0:01:39.8]} 34. Rxc8+ {[%clk
0:00:08.4]} 34... Kxc8 {[%clk 0:01:40.7]} 35. Rg4 {[%clk 0:00:08.6]} 35... a5
{[%clk 0:01:40.5]} 36. Rc4+ {[%clk 0:00:08.8]} 36... Kb7 {[%clk 0:01:39.9]} 37.
Rc3 {[%clk 0:00:09.7]} 37... b2 {[%clk 0:01:40.3]} 38. Rb3+ {[%clk 0:00:10.3]}
38... Kc6 {[%clk 0:01:41.2]} 39. Rxb2 {[%clk 0:00:10.9]} 39... Kc5 {[%clk
0:01:42.1]} 40. Rb5+ {[%clk 0:00:11.3]} 40... Kc4 {[%clk 0:01:43]} 1-0

[Event "*** Titled Tuesday Blitz"]
[Site "Chess.com"]
[Date "2020.12.01"]
[Round "1"]
[White "Duhless"]
[Black "TudorAnton"]
[Result "1-0"]
[WhiteElo "2993"]
[BlackElo "2454"]
[TimeControl "180+1"]
[EndTime "10:05:52 PST"]
[Termination "Duhless won by resignation"]

1. d4 {[%clk 0:02:58.3]} 1... Nf6 {[%clk 0:02:59.6]} 2. Nf3 {[%clk 0:02:59.2]}
2... e6 {[%clk 0:02:58.8]} 3. Bg5 {[%clk 0:02:58.5]} 3... c5 {[%clk 0:02:57.9]}
4. d5 {[%clk 0:02:57.9]} 4... exd5 {[%clk 0:02:55.1]} 5. Nc3 {[%clk 0:02:56.1]}
5... d4 {[%clk 0:02:53.7]} 6. Bxf6 {[%clk 0:02:55.1]} 6... Qxf6 {[%clk
0:02:43.4]} 7. Nd5 {[%clk 0:02:54.9]} 7... Qc6 {[%clk 0:02:42.8]} 8. e4 {[%clk
0:02:53]} 8... dxe3 {[%clk 0:02:40.1]} 9. Bb5 {[%clk 0:02:50]} 9... Qd6 {[%clk
0:02:34.7]} 10. O-O {[%clk 0:02:49]} 10... Be7 {[%clk 0:02:32.3]} 11. Re1 {[%clk
0:02:42.6]} 11... O-O {[%clk 0:02:31.7]} 12. Rxe3 {[%clk 0:02:42]} 12... Bd8
{[%clk 0:02:31.3]} 13. Ne5 {[%clk 0:02:33.2]} 13... Nc6 {[%clk 0:02:20.1]} 14.
Nc4 {[%clk 0:02:29.1]} 14... Qg6 {[%clk 0:01:56.9]} 15. Rg3 {[%clk 0:02:26.9]}
15... Qh6 {[%clk 0:01:56.7]} 16. Rh3 {[%clk 0:02:18.5]} 16... Qg6 {[%clk
0:01:56.9]} 17. Nce3 {[%clk 0:01:34.1]} 17... d6 {[%clk 0:01:45.7]} 18. Bd3
{[%clk 0:01:31.6]} 18... f5 {[%clk 0:01:45.4]} 19. Nf4 {[%clk 0:01:25.4]} 19...
Qg5 {[%clk 0:01:27.3]} 20. Bc4+ {[%clk 0:01:21.3]} 20... Kh8 {[%clk 0:01:27]}
21. Qxd6 {[%clk 0:01:12.3]} 21... Ne7 {[%clk 0:00:56.4]} 22. Rd1 {[%clk
0:01:02.5]} 22... b5 {[%clk 0:00:38.7]} 23. Qxd8 {[%clk 0:00:43.2]} 23... Ba6
{[%clk 0:00:36.4]} 24. Qxe7 {[%clk 0:00:40.1]} 24... Qxf4 {[%clk 0:00:36.7]} 1-0

[Event "*** Titled Tuesday Blitz"]
[Site "Chess.com"]
[Date "2020.12.01"]
[Round "1"]
[White "ArjunErigaisi2003"]
[Black "esskeettit"]
[Result "1-0"]
[WhiteElo "2908"]
[BlackElo "2438"]
[TimeControl "180+1"]
[EndTime "10:05:53 PST"]
[Termination "ArjunErigaisi2003 won by resignation"]

1. d4 {[%clk 0:02:59.9]} 1... Nf6 {[%clk 0:02:59.2]} 2. Bg5 {[%clk 0:02:58.2]}
2... e6 {[%clk 0:02:59.1]} 3. Nd2 {[%clk 0:02:57.1]} 3... h6 {[%clk 0:02:54.5]}
4. Bh4 {[%clk 0:02:55]} 4... d5 {[%clk 0:02:54.2]} 5. Ngf3 {[%clk 0:02:53]} 5...
Be7 {[%clk 0:02:53.4]} 6. e3 {[%clk 0:02:53.3]} 6... c5 {[%clk 0:02:49.9]} 7.
Bd3 {[%clk 0:02:53]} 7... Nc6 {[%clk 0:02:49.8]} 8. c3 {[%clk 0:02:52.9]} 8...
b6 {[%clk 0:02:49.9]} 9. O-O {[%clk 0:02:52.7]} 9... Bb7 {[%clk 0:02:49.8]} 10.
Qe2 {[%clk 0:02:53.3]} 10... O-O {[%clk 0:02:45.8]} 11. Rad1 {[%clk 0:02:51.7]}
11... Ne4 {[%clk 0:02:42.4]} 12. Bxe7 {[%clk 0:02:48.9]} 12... Nxe7 {[%clk
0:02:43.3]} 13. Ba6 {[%clk 0:02:42.4]} 13... Bxa6 {[%clk 0:02:39.4]} 14. Qxa6
{[%clk 0:02:43.3]} 14... Nxd2 {[%clk 0:02:36.6]} 15. Rxd2 {[%clk 0:02:44.2]}
15... Qc7 {[%clk 0:02:35.7]} 16. h3 {[%clk 0:02:43.5]} 16... Nf5 {[%clk
0:02:32.6]} 17. dxc5 {[%clk 0:02:41.4]} 17... Qxc5 {[%clk 0:02:06.1]} 18. Rfd1
{[%clk 0:02:40.9]} 18... Nd6 {[%clk 0:02:00.2]} 19. Rd4 {[%clk 0:02:40.3]} 19...
Rfc8 {[%clk 0:01:51]} 20. Ne5 {[%clk 0:02:36.1]} 20... Nf5 {[%clk 0:01:44.9]}
21. Rf4 {[%clk 0:02:28]} 21... Qc7 {[%clk 0:01:41.4]} 22. Nf3 {[%clk 0:02:20.1]}
22... Nd6 {[%clk 0:01:25.1]} 23. Qe2 {[%clk 0:02:20.5]} 23... Nc4 {[%clk
0:01:23.9]} 24. Rg4 {[%clk 0:02:18.6]} 24... Ne5 {[%clk 0:01:19.8]} 25. Rgd4
{[%clk 0:02:10.9]} 25... Nxf3+ {[%clk 0:01:16]} 26. Qxf3 {[%clk 0:02:11.8]}
26... Rab8 {[%clk 0:01:16.1]} 27. e4 {[%clk 0:02:10.6]} 27... dxe4 {[%clk
0:01:15.9]} 28. Qxe4 {[%clk 0:02:11.5]} 28... Rd8 {[%clk 0:01:14.5]} 29. a4
{[%clk 0:02:10.2]} 29... Rxd4 {[%clk 0:01:14]} 30. Rxd4 {[%clk 0:02:11.1]} 30...
Rd8 {[%clk 0:01:13.2]} 31. Rxd8+ {[%clk 0:02:02.1]} 31... Qxd8 {[%clk
0:01:14.1]} 32. g3 {[%clk 0:02:03]} 32... g6 {[%clk 0:01:13.3]} 33. Kg2 {[%clk
0:02:02.9]} 33... h5 {[%clk 0:01:13.4]} 34. Qb7 {[%clk 0:02:02.7]} 34... Qd2
{[%clk 0:01:04.4]} 35. Qxa7 {[%clk 0:01:50.2]} 35... Qxb2 {[%clk 0:01:04.4]} 36.
Qb8+ {[%clk 0:01:44.5]} 36... Kh7 {[%clk 0:01:00.9]} 37. a5 {[%clk 0:01:45.4]}
37... Qxc3 {[%clk 0:00:53.7]} 38. Qxb6 {[%clk 0:01:43.9]} 38... Qc4 {[%clk
0:00:50.4]} 39. a6 {[%clk 0:01:42.4]} 39... Qe4+ {[%clk 0:00:49.6]} 40. Kg1
{[%clk 0:01:40.4]} 40... h4 {[%clk 0:00:46.9]} 41. a7 {[%clk 0:01:30.9]} 41...
hxg3 {[%clk 0:00:44.1]} 42. fxg3 {[%clk 0:01:31.8]} 42... Qf3 {[%clk 0:00:43.8]}
43. Qf2 {[%clk 0:01:27.8]} 43... Qe4 {[%clk 0:00:42.6]} 44. Qxf7+ {[%clk
0:01:27.4]} 44... Kh6 {[%clk 0:00:42.6]} 45. Qf4+ {[%clk 0:01:27.5]} 1-0

[Event "*** Titled Tuesday Blitz"]
[Site "Chess.com"]
[Date "2020.12.01"]
[Round "1"]
[White "Rainmond"]
[Black "SHIVACalypso"]
[Result "1-0"]
[WhiteElo "2801"]
[BlackElo "2397"]
[TimeControl "180+1"]
[EndTime "10:05:53 PST"]
[Termination "Rainmond won by resignation"]

1. d4 {[%clk 0:03:00.7]} 1... e6 {[%clk 0:02:59.4]} 2. Nf3 {[%clk 0:02:58.6]}
2... Nf6 {[%clk 0:02:59.6]} 3. c4 {[%clk 0:02:58.3]} 3... d5 {[%clk 0:02:59.6]}
4. Nc3 {[%clk 0:02:58.3]} 4... Bb4 {[%clk 0:02:59.2]} 5. Bg5 {[%clk 0:02:58]}
5... h6 {[%clk 0:02:58.6]} 6. Bh4 {[%clk 0:02:57.9]} 6... O-O {[%clk 0:02:56.9]}
7. e3 {[%clk 0:02:57.3]} 7... Nc6 {[%clk 0:02:54.4]} 8. Qb3 {[%clk 0:02:56.1]}
8... Be7 {[%clk 0:02:42.7]} 9. cxd5 {[%clk 0:02:54]} 9... Nxd5 {[%clk
0:02:31.9]} 10. Bg3 {[%clk 0:02:51.8]} 10... Nxc3 {[%clk 0:02:29.9]} 11. bxc3
{[%clk 0:02:51.7]} 11... Bd6 {[%clk 0:02:27.9]} 12. Bb5 {[%clk 0:02:50.2]} 12...
Bd7 {[%clk 0:02:20.1]} 13. Rb1 {[%clk 0:02:48.6]} 13... a6 {[%clk 0:02:16.7]}
14. Bd3 {[%clk 0:02:47.9]} 14... b5 {[%clk 0:02:14.1]} 15. Qc2 {[%clk
0:02:43.6]} 15... Qe7 {[%clk 0:02:00.9]} 16. O-O {[%clk 0:02:42.3]} 16... Na5
{[%clk 0:01:59.3]} 17. c4 {[%clk 0:02:40.7]} 17... bxc4 {[%clk 0:01:51.5]} 18.
Be4 {[%clk 0:02:40.9]} 18... Rab8 {[%clk 0:01:49.9]} 19. Ne5 {[%clk 0:02:40.5]}
19... Bxe5 {[%clk 0:01:44.7]} 20. Bxe5 {[%clk 0:02:38.4]} 20... Rb5 {[%clk
0:01:35.9]} 21. Bxc7 {[%clk 0:02:37.1]} 21... Qa3 {[%clk 0:01:09.7]} 22. Rxb5
{[%clk 0:02:32.1]} 22... axb5 {[%clk 0:01:07.2]} 23. Rb1 {[%clk 0:02:31.6]}
23... Rc8 {[%clk 0:01:00.7]} 24. Bb6 {[%clk 0:02:31.2]} 24... b4 {[%clk
0:00:55.3]} 25. Bc5 {[%clk 0:02:28.7]} 25... Rb8 {[%clk 0:00:48.6]} 26. h4
{[%clk 0:02:25.8]} 26... Ba4 {[%clk 0:00:48.1]} 27. Qe2 {[%clk 0:02:20]} 27...
c3 {[%clk 0:00:45.5]} 28. Bd3 {[%clk 0:02:12.8]} 28... Bc6 {[%clk 0:00:43.4]}
29. e4 {[%clk 0:02:10.3]} 29... Qa4 {[%clk 0:00:39.5]} 30. Rc1 {[%clk
0:02:01.3]} 30... Bb5 {[%clk 0:00:29.5]} 31. Qc2 {[%clk 0:01:52.2]} 31... Qxc2
{[%clk 0:00:28.6]} 32. Bxc2 {[%clk 0:01:52.3]} 32... Bc4 {[%clk 0:00:29.1]} 33.
Rb1 {[%clk 0:01:51.9]} 33... Bxa2 {[%clk 0:00:19.9]} 34. Rxb4 {[%clk 0:01:51.6]}
34... Rc8 {[%clk 0:00:18.2]} 35. f3 {[%clk 0:01:44.6]} 35... Nc6 {[%clk
0:00:15.7]} 36. Ra4 {[%clk 0:01:43.8]} 36... Rb8 {[%clk 0:00:12.6]} 37. Rxa2
{[%clk 0:01:43.1]} 37... Rb2 {[%clk 0:00:13.2]} 38. Rxb2 {[%clk 0:01:43.1]}
38... cxb2 {[%clk 0:00:14.1]} 39. Kf2 {[%clk 0:01:43.2]} 1-0

[Event "*** Titled Tuesday Blitz"]
[Site "Chess.com"]
[Date "2020.12.01"]
[Round "1"]
[White "FMalexhdez"]
[Black "Lupul_Cenusiu"]
[Result "0-1"]
[WhiteElo "2270"]
[BlackElo "2586"]
[TimeControl "180+1"]
[EndTime "10:05:57 PST"]
[Termination "Lupul_Cenusiu won by resignation"]

1. e4 {[%clk 0:03:00.8]} 1... c5 {[%clk 0:02:57]} 2. Nf3 {[%clk 0:02:59.5]} 2...
e6 {[%clk 0:02:57]} 3. d4 {[%clk 0:02:58.2]} 3... cxd4 {[%clk 0:02:57]} 4. Nxd4
{[%clk 0:02:58.2]} 4... a6 {[%clk 0:02:57.3]} 5. c4 {[%clk 0:02:57.5]} 5... Nf6
{[%clk 0:02:55.4]} 6. Nc3 {[%clk 0:02:56.9]} 6... d6 {[%clk 0:02:55.7]} 7. Nc2
{[%clk 0:02:55.7]} 7... b6 {[%clk 0:02:55]} 8. Be2 {[%clk 0:02:51.1]} 8... Bb7
{[%clk 0:02:55]} 9. f3 {[%clk 0:02:48.9]} 9... h5 {[%clk 0:02:53.7]} 10. Be3
{[%clk 0:02:42.7]} 10... Nbd7 {[%clk 0:02:53.2]} 11. O-O {[%clk 0:02:31.5]}
11... Rc8 {[%clk 0:02:53]} 12. Rc1 {[%clk 0:02:23.1]} 12... Be7 {[%clk
0:02:45.6]} 13. b3 {[%clk 0:02:11.2]} 13... Ne5 {[%clk 0:02:39.3]} 14. Qe1
{[%clk 0:02:07.5]} 14... h4 {[%clk 0:02:36.6]} 15. Qf2 {[%clk 0:02:04.7]} 15...
Ned7 {[%clk 0:02:27.4]} 16. Nd4 {[%clk 0:01:56.8]} 16... g6 {[%clk 0:02:15.7]}
17. Bd3 {[%clk 0:01:56.3]} 17... Kf8 {[%clk 0:02:14.3]} 18. f4 {[%clk
0:01:55.8]} 18... Ng4 {[%clk 0:02:12.8]} 19. Qe2 {[%clk 0:01:54.1]} 19... Nxe3
{[%clk 0:02:12.2]} 20. Qxe3 {[%clk 0:01:54.6]} 20... Kg7 {[%clk 0:01:56.6]} 21.
f5 {[%clk 0:01:51.5]} 21... Bg5 {[%clk 0:01:48.8]} 22. Qf2 {[%clk 0:01:37]}
22... Qf6 {[%clk 0:01:22.5]} 23. Rce1 {[%clk 0:01:27.7]} 23... Ne5 {[%clk
0:01:15.1]} 24. Bb1 {[%clk 0:01:08.8]} 24... Ng4 {[%clk 0:01:12.2]} 25. Nxe6+
{[%clk 0:00:14.7]} 25... fxe6 {[%clk 0:01:10.5]} 26. Qe2 {[%clk 0:00:14.5]}
26... Ne3 {[%clk 0:00:58.4]} 0-1

[Event "*** Titled Tuesday Blitz"]
[Site "Chess.com"]
[Date "2020.12.01"]
[Round "1"]
[White "jefferyx"]
[Black "MashaFromRussia"]
[Result "1-0"]
[WhiteElo "2921"]
[BlackElo "2440"]
[TimeControl "180+1"]
[EndTime "10:05:59 PST"]
[Termination "jefferyx won by resignation"]

1. c4 {[%clk 0:03:00.1]} 1... e5 {[%clk 0:02:59.8]} 2. g3 {[%clk 0:02:59.7]}
2... d6 {[%clk 0:03:00]} 3. Bg2 {[%clk 0:02:59.8]} 3... g6 {[%clk 0:03:00.7]} 4.
Nc3 {[%clk 0:03:00.2]} 4... Bg7 {[%clk 0:03:01.4]} 5. Nf3 {[%clk 0:03:00.3]}
5... f5 {[%clk 0:03:01.9]} 6. d3 {[%clk 0:02:59.7]} 6... Nf6 {[%clk 0:03:02.5]}
7. O-O {[%clk 0:03:00.2]} 7... O-O {[%clk 0:03:03]} 8. Nd2 {[%clk 0:03:00.5]}
8... Nc6 {[%clk 0:02:59.5]} 9. Rb1 {[%clk 0:03:00.9]} 9... a5 {[%clk 0:02:59]}
10. a3 {[%clk 0:03:01.3]} 10... Ne7 {[%clk 0:02:49.7]} 11. b4 {[%clk 0:03:01.4]}
11... axb4 {[%clk 0:02:50.6]} 12. axb4 {[%clk 0:03:02.3]} 12... d5 {[%clk
0:02:50.5]} 13. cxd5 {[%clk 0:03:02]} 13... Nexd5 {[%clk 0:02:51.1]} 14. Bb2
{[%clk 0:02:59.2]} 14... c6 {[%clk 0:02:48]} 15. b5 {[%clk 0:02:48.5]} 15... Be6
{[%clk 0:02:44.8]} 16. bxc6 {[%clk 0:02:36.8]} 16... bxc6 {[%clk 0:02:45.7]} 17.
Nxd5 {[%clk 0:02:37.2]} 17... Nxd5 {[%clk 0:02:44.5]} 18. Nc4 {[%clk 0:02:37.5]}
18... Qc7 {[%clk 0:02:44.6]} 19. Qd2 {[%clk 0:02:37.5]} 19... Rfb8 {[%clk
0:02:43]} 20. Rfc1 {[%clk 0:02:37.8]} 20... Rb3 {[%clk 0:02:26.4]} 21. Bxe5
{[%clk 0:02:35.1]} 21... Qb7 {[%clk 0:02:15.6]} 22. Rxb3 {[%clk 0:02:33.3]}
22... Qxb3 {[%clk 0:02:16]} 23. Bxg7 {[%clk 0:02:33.7]} 23... Kxg7 {[%clk
0:02:16.9]} 24. Na5 {[%clk 0:01:24.5]} 24... Qb5 {[%clk 0:01:57.2]} 25. Nxc6
{[%clk 0:01:21.6]} 25... Bf7 {[%clk 0:01:47.4]} 26. Nb4 {[%clk 0:01:15.9]} 26...
Re8 {[%clk 0:01:28.2]} 27. Bxd5 {[%clk 0:00:57.6]} 27... Bxd5 {[%clk 0:01:29.1]}
28. Rc7+ {[%clk 0:00:57.8]} 28... Bf7 {[%clk 0:01:14.5]} 29. Qc3+ {[%clk
0:00:58.7]} 29... Kg8 {[%clk 0:01:14]} 30. Qf6 {[%clk 0:00:58.3]} 30... Rf8
{[%clk 0:01:09.6]} 31. Qd4 {[%clk 0:00:47.5]} 31... Ra8 {[%clk 0:01:03.3]} 32.
Nc6 {[%clk 0:00:37.1]} 1-0

[Event "*** Titled Tuesday Blitz"]
[Site "Chess.com"]
[Date "2020.12.01"]
[Round "1"]
[White "VinzentSpitzl"]
[Black "AlexTriapishko"]
[Result "0-1"]
[WhiteElo "2402"]
[BlackElo "2805"]
[TimeControl "180+1"]
[EndTime "10:05:59 PST"]
[Termination "AlexTriapishko won by resignation"]

1. e4 {[%clk 0:03:00.8]} 1... e5 {[%clk 0:02:49.2]} 2. Nf3 {[%clk 0:03:00.8]}
2... Nc6 {[%clk 0:02:49.6]} 3. Bb5 {[%clk 0:03:01.4]} 3... a6 {[%clk 0:02:44.6]}
4. Ba4 {[%clk 0:03:01.6]} 4... g6 {[%clk 0:02:44.9]} 5. c3 {[%clk 0:02:56.4]}
5... Bg7 {[%clk 0:02:45]} 6. d4 {[%clk 0:02:54.3]} 6... b5 {[%clk 0:02:44.9]} 7.
Bb3 {[%clk 0:02:51.6]} 7... exd4 {[%clk 0:02:45.1]} 8. cxd4 {[%clk 0:02:51.6]}
8... Nge7 {[%clk 0:02:44.4]} 9. d5 {[%clk 0:02:36]} 9... Na5 {[%clk 0:02:43.4]}
10. d6 {[%clk 0:02:00.1]} 10... cxd6 {[%clk 0:02:41]} 11. Qxd6 {[%clk 0:02:00]}
11... Nb7 {[%clk 0:02:23.6]} 12. Qd1 {[%clk 0:01:52.2]} 12... O-O {[%clk
0:02:21.3]} 13. O-O {[%clk 0:01:51.6]} 13... Nc5 {[%clk 0:02:18.1]} 14. Nc3
{[%clk 0:01:47.6]} 14... Bb7 {[%clk 0:02:05.2]} 15. Nd5 {[%clk 0:01:24.8]} 15...
Nxb3 {[%clk 0:02:00.3]} 16. Qxb3 {[%clk 0:01:17.8]} 16... Nxd5 {[%clk
0:01:56.1]} 17. exd5 {[%clk 0:01:17.5]} 17... Qf6 {[%clk 0:01:56.8]} 18. Rb1
{[%clk 0:00:58.1]} 18... Qf5 {[%clk 0:01:56.2]} 19. Bd2 {[%clk 0:00:44]} 19...
Bxd5 {[%clk 0:01:55.2]} 20. Qe3 {[%clk 0:00:43.7]} 20... Rfe8 {[%clk 0:01:54.1]}
21. Qa3 {[%clk 0:00:38]} 21... Re4 {[%clk 0:01:47.4]} 22. Rfe1 {[%clk
0:00:34.4]} 22... Ra4 {[%clk 0:01:31.7]} 23. Qe3 {[%clk 0:00:28.9]} 23... Rg4
{[%clk 0:01:25.1]} 24. Qe8+ {[%clk 0:00:13.3]} 24... Bf8 {[%clk 0:01:24.6]} 25.
Bh6 {[%clk 0:00:04.1]} 25... Rxg2+ {[%clk 0:01:19.7]} 26. Kxg2 {[%clk
0:00:03.5]} 26... Qxf3+ {[%clk 0:01:20]} 27. Kf1 {[%clk 0:00:03.8]} 27... Qh3+
{[%clk 0:01:14.7]} 0-1